bitfinex/quotes_BTCUSD_20250226
["timestamp","ask_amount","ask_price","bid_price","bid_amount"]
[1740552533268,0.169439,89053.0,89050.0,0.00289007]
[1740552533452,0.001,89053.0,89050.0,0.00089007]
[1740552533655,0.168431,89058.0,89050.0,0.00289007]
[1740552533869,0.224565,89061.0,89050.0,0.00289007]
[1740552533870,0.168431,89057.0,89050.0,0.00289007]
[1740552534059,0.001,89063.0,89050.0,0.00289007]
[1740552534288,0.168437,89054.0,89050.0,0.00289007]
[1740552534804,0.168437,89054.0,89050.0,0.00089007]
[1740552535103,0.168437,89054.0,89050.0,0.00289007]
[1740552535407,0.001,89053.0,89050.0,0.00089007]
[1740552535553,0.001,89053.0,89050.0,0.00289007]
[1740552535955,0.168437,89054.0,89050.0,0.00289007]
[1740552536263,0.169437,89054.0,89050.0,0.00289007]
[1740552536408,0.169437,89054.0,89050.0,0.00089007]
[1740552536723,0.168439,89053.0,89050.0,0.00089007]
[1740552536923,0.168441,89052.0,89050.0,0.00289007]
[1740552537200,0.16844,89052.0,89050.0,0.00289007]
[1740552537952,0.001,89053.0,89050.0,0.00089007]
[1740552538483,0.25752709,89070.0,89050.0,0.00289007]
[1740552538694,0.001,89052.0,89051.0,0.249342]
[1740552538849,0.001,89052.0,89051.0,0.0809]
[1740552539276,0.168431,89058.0,89051.0,0.0809]
[1740552539659,0.001,89053.0,89051.0,0.0809]
[1740552540061,0.3,89066.0,89051.0,0.0809]
[1740552540299,0.168429,89058.0,89051.0,0.0809]
[1740552540505,0.168432,89057.0,89051.0,0.0809]
[1740552540888,0.001,89058.0,89057.0,0.168431]
[1740552541087,0.001,89058.0,89057.0,0.21570285]
[1740552541269,0.001,89058.0,89057.0,0.29680285]
[1740552541480,0.001,89058.0,89057.0,0.1268]
[1740552541830,0.168428,89059.0,89057.0,0.1268]
[1740552542137,0.168427,89059.0,89057.0,0.1258]
[1740552542651,0.168429,89058.0,89057.0,0.1268]
[1740552542855,0.168429,89058.0,89057.0,0.1308]
[1740552543159,0.168429,89058.0,89057.0,0.1298]
[1740552544146,0.168429,89058.0,89057.0,0.1258]
[1740552544363,0.168427,89060.0,89057.0,0.1258]
[1740552544573,0.168427,89060.0,89057.0,0.1288]
[1740552544792,0.168427,89060.0,89057.0,0.1258]
[1740552544993,0.20159324,89062.0,89057.0,0.1268]
[1740552545199,0.168425,89061.0,89058.0,0.01268]
[1740552545396,0.224557,89064.0,89058.0,0.01268]
[1740552545599,0.168423,89062.0,89058.0,0.01268]
[1740552545845,0.168416,89065.0,89058.0,0.01268]
[1740552546020,0.224549,89068.0,89058.0,0.181108]
[1740552546239,0.168415,89066.0,89059.0,0.01382616]
[1740552546447,0.224527,89077.0,89059.0,0.01382616]
[1740552546636,0.00100004,89076.0,89059.0,0.01382616]
[1740552546836,0.168423,89062.0,89059.0,0.01382616]
[1740552547245,0.224557,89064.0,89060.0,0.01156217]
[1740552547742,0.168423,89062.0,89060.0,0.01156217]
[1740552547938,0.168423,89062.0,89061.0,0.01268]
[1740552548120,0.224476,89097.0,89061.0,0.01268]
[1740552548307,0.00100004,89086.0,89065.0,0.168414]
[1740552548550,0.3,89078.0,89066.0,0.011553]
[1740552548790,0.3,89087.0,89069.0,0.168408]
[1740552548995,0.168394,89077.0,89069.0,0.27278257]
[1740552549465,0.224519,89080.0,89069.0,0.27278257]
[1740552549619,0.224509,89083.0,89069.0,0.27278257]
[1740552549620,0.16839,89079.0,89069.0,0.27278257]
[1740552550264,0.168391,89078.0,89069.0,0.27278257]
[1740552550419,0.224516,89081.0,89069.0,0.27278257]
[1740552550835,0.168397,89075.0,89069.0,0.27278257]
[1740552551041,0.168395,89077.0,89069.0,0.27278257]
[1740552551222,0.168391,89078.0,89069.0,0.27278257]
[1740552551561,0.168392,89078.0,89069.0,0.27578257]
[1740552551776,0.168389,89079.0,89069.0,0.27578257]
[1740552551976,0.16839,89079.0,89069.0,0.27678257]
[1740552552479,0.168396,89076.0,89069.0,0.27678257]
[1740552552694,0.224522,89079.0,89069.0,0.27678257]
[1740552552896,0.224524,89078.0,89069.0,0.10837457]
[1740552553012,0.168395,89076.0,89069.0,0.27678257]
[1740552553213,0.3,89088.0,89069.0,0.27678257]
[1740552553214,0.224516,89081.0,89069.0,0.27678257]
[1740552553416,0.224507,89084.0,89069.0,0.27278257]
[1740552553626,0.16839,89079.0,89069.0,0.27378257]
[1740552553821,0.224512,89082.0,89069.0,0.27378257]
[1740552554036,0.168388,89080.0,89069.0,0.27678257]
[1740552554238,0.168393,89077.0,89069.0,0.27678257]
[1740552554461,0.224512,89082.0,89069.0,0.27678257]
[1740552554666,0.3,89091.0,89069.0,0.27678257]
[1740552554871,0.168388,89080.0,89069.0,0.27678257]
[1740552555043,0.168388,89080.0,89069.0,0.27578257]
[1740552555264,0.168388,89080.0,89069.0,0.27678257]
[1740552555458,0.224504,89086.0,89069.0,0.27378257]
[1740552555719,0.168387,89081.0,89069.0,0.27278257]
[1740552555976,0.168395,89077.0,89069.0,0.27278257]
[1740552556174,0.168396,89076.0,89069.0,0.27378257]
[1740552556610,0.224519,89080.0,89069.0,0.27378257]
[1740552556907,0.224511,89083.0,89069.0,0.27278257]
[1740552557029,0.168388,89080.0,89069.0,0.27278257]
[1740552557226,0.224516,89081.0,89069.0,0.27278257]
[1740552557572,0.168394,89077.0,89069.0,0.27578257]
[1740552558189,0.168394,89077.0,89069.0,0.27678257]
[1740552558512,0.16839,89079.0,89069.0,0.27678257]
[1740552559210,0.168387,89081.0,89069.0,0.27278257]
[1740552559471,0.224504,89085.0,89069.0,0.27378257]
[1740552559669,0.168384,89082.0,89069.0,0.27378257]
[1740552559845,0.224504,89085.0,89069.0,0.32138257]
[1740552560143,0.168382,89083.0,89069.0,0.32138257]
[1740552560343,0.224497,89088.0,89069.0,0.32138257]
[1740552560521,0.224508,89084.0,89069.0,0.32438257]
[1740552560729,0.168386,89081.0,89069.0,0.32438257]
[1740552560924,0.168388,89080.0,89069.0,0.32438257]
[1740552561131,0.224511,89083.0,89069.0,0.32438257]
[1740552561329,0.168386,89081.0,89069.0,0.32438257]
[1740552561655,0.168382,89083.0,89069.0,0.32438257]
[1740552561949,0.224504,89085.0,89069.0,0.32438257]
[1740552562125,0.168386,89081.0,89069.0,0.32438257]
[1740552562513,0.168387,89080.0,89069.0,0.32438257]
[1740552563210,0.168385,89082.0,89069.0,0.32438257]
[1740552563480,0.16839,89079.0,89069.0,0.32438257]
[1740552563913,0.224514,89082.0,89069.0,0.32438257]
[1740552564076,0.168388,89080.0,89069.0,0.32438257]
[1740552564260,0.168391,89078.0,89069.0,0.52584283]
[1740552564459,0.224497,89088.0,89069.0,0.52584283]
[1740552564658,0.168404,89072.0,89069.0,0.35743483]
[1740552564862,0.168403,89072.0,89069.0,0.35743483]
[1740552565067,0.224527,89076.0,89069.0,0.35743483]
[1740552566161,0.168401,89073.0,89069.0,0.35743483]
[1740552566710,0.224527,89076.0,89069.0,0.35743483]
[1740552566905,0.168401,89073.0,89069.0,0.35743483]
[1740552567113,0.168401,89074.0,89069.0,0.35743483]
[1740552567311,0.168399,89074.0,89069.0,0.35743483]
[1740552567753,0.168401,89073.0,89069.0,0.35743483]
[1740552567910,0.224527,89076.0,89069.0,0.35643483]
[1740552568113,0.168399,89074.0,89069.0,0.35643483]
[1740552568333,0.168399,89074.0,89069.0,0.35443483]
[1740552568529,0.224531,89075.0,89069.0,0.35743483]
[1740552568732,0.1684,89074.0,89069.0,0.35743483]
[1740552569111,0.168403,89072.0,89069.0,0.35743483]
[1740552569312,0.224531,89075.0,89069.0,0.35743483]
[1740552569517,0.168399,89074.0,89069.0,0.35743483]
[1740552569725,0.168397,89075.0,89069.0,0.52584283]
[1740552570559,0.168395,89076.0,89069.0,0.52584283]
[1740552570858,0.224505,89085.0,89069.0,0.35743483]
[1740552571093,0.168402,89073.0,89069.0,0.35743483]
[1740552571270,0.224531,89075.0,89069.0,0.35643483]
[1740552571476,0.1684,89074.0,89069.0,0.35443483]
[1740552571839,0.224531,89075.0,89069.0,0.35743483]
[1740552572043,0.168401,89073.0,89069.0,0.35343483]
[1740552572238,0.168401,89073.0,89069.0,0.35443483]
[1740552572467,0.224531,89075.0,89069.0,0.35743483]
[1740552573252,0.224525,89077.0,89069.0,0.52584283]
[1740552573534,0.168395,89077.0,89069.0,0.52584283]
[1740552573812,0.224505,89085.0,89069.0,0.52584283]
[1740552574372,0.168395,89076.0,89069.0,0.52284283]
[1740552574576,0.168397,89075.0,89069.0,0.52284283]
[1740552574786,0.168397,89075.0,89069.0,0.52484283]
[1740552575009,0.224519,89080.0,89069.0,0.35743483]
[1740552575268,0.168397,89075.0,89069.0,0.52584283]
[1740552575481,0.168395,89076.0,89069.0,0.52284283]
[1740552575686,0.168397,89075.0,89069.0,0.52184283]
[1740552575826,0.168397,89075.0,89069.0,0.52584283]
[1740552576029,0.168397,89075.0,89069.0,0.52284283]
[1740552576253,0.224524,89078.0,89069.0,0.35443483]
[1740552576449,0.168403,89072.0,89069.0,0.35343483]
[1740552576651,0.000424,89070.0,89069.0,0.52184283]
[1740552576815,0.000424,89070.0,89069.0,0.52284283]
[1740552577018,0.000424,89070.0,89069.0,0.52584283]
[1740552577827,0.04304913,89070.0,89069.0,0.52584283]
[1740552578028,0.04304913,89070.0,89069.0,0.54525706]
[1740552578212,0.04304913,89070.0,89069.0,0.54425706]
[1740552578410,0.000424,89070.0,89069.0,0.54125706]
[1740552578657,0.000424,89070.0,89069.0,0.54525706]
[1740552579009,0.000424,89070.0,89069.0,0.54225706]
[1740552579245,0.000424,89070.0,89069.0,0.54577725]
[1740552579424,0.000424,89070.0,89069.0,0.54977725]
[1740552579624,0.04290325,89070.0,89069.0,0.54477725]
[1740552579926,0.000424,89070.0,89069.0,0.55277725]
[1740552581231,0.000424,89070.0,89069.0,0.54977725]
[1740552581646,0.000424,89070.0,89069.0,0.55277725]
[1740552582207,0.04202153,89070.0,89069.0,0.55277725]
[1740552587383,0.000424,89070.0,89069.0,0.55277725]
[1740552587678,0.000424,89070.0,89069.0,0.54777725]
[1740552587996,0.000424,89070.0,89069.0,0.55277725]
[1740552588199,0.000424,89070.0,89069.0,0.54977725]
[1740552588415,0.000424,89070.0,89069.0,0.55277725]
[1740552589114,0.04233192,89070.0,89069.0,0.55277725]
[1740552589910,0.04233192,89070.0,89069.0,0.54977725]
[1740552590519,0.04233192,89070.0,89069.0,0.38136925]
[1740552590718,0.04233192,89070.0,89069.0,0.37636925]
[1740552591142,0.04233192,89070.0,89069.0,0.55277725]
[1740552591490,0.04233192,89070.0,89069.0,0.54777725]
[1740552591663,0.04233192,89070.0,89069.0,0.54977725]
[1740552592049,0.04233192,89070.0,89069.0,0.55277725]
[1740552592607,0.04233192,89070.0,89069.0,0.54977725]
[1740552592789,0.04233192,89070.0,89069.0,0.55177725]
[1740552593765,0.04233192,89070.0,89069.0,0.54677725]
[1740552594196,0.04233192,89070.0,89069.0,0.54977725]
[1740552594415,0.04233192,89070.0,89069.0,0.55277725]
[1740552594999,0.04233192,89070.0,89069.0,0.54977725]
[1740552595359,0.21073792,89070.0,89069.0,0.25676925]
[1740552595759,0.21073792,89070.0,89069.0,0.2394229]
[1740552596711,0.224534,89074.0,89069.0,0.2394229]
[1740552596970,0.168406,89070.0,89069.0,0.21500867]
[1740552597132,0.168406,89070.0,89069.0,0.20646026]
[1740552597332,0.168406,89070.0,89069.0,0.21600867]
[1740552597553,0.168406,89070.0,89069.0,0.21400867]
[1740552597758,0.168399,89074.0,89069.0,0.21700867]
[1740552598078,0.168395,89077.0,89070.0,0.168406]
[1740552598275,0.0786,89088.0,89070.0,0.168406]
[1740552598276,0.168391,89078.0,89070.0,0.168406]
[1740552598439,0.168391,89078.0,89071.0,0.17994836]
[1740552598836,0.0786,89088.0,89071.0,0.01154536]
[1740552599186,0.168396,89076.0,89071.0,0.01154536]
[1740552599567,0.20955912,89076.0,89069.0,0.170408]
[1740552599747,0.20955912,89076.0,89072.0,0.01154383]
[1740552599976,0.20955912,89076.0,89069.0,0.170408]
[1740552600300,0.04116312,89076.0,89069.0,0.001]
[1740552600455,0.04116312,89076.0,89071.0,0.168404]
[1740552600665,0.16839,89079.0,89072.0,0.17994583]
[1740552601060,0.168389,89080.0,89073.0,0.1684]
[1740552601286,0.168389,89080.0,89074.0,0.01154077]
[1740552601485,0.0786,89088.0,89074.0,0.01154077]
[1740552601740,0.168396,89076.0,89074.0,0.01154077]
[1740552601890,0.224522,89078.0,88903.0,1.12225509]
[1740552602086,0.168391,89078.0,89075.0,0.01153924]
[1740552602292,0.168395,89076.0,89071.0,0.002]
[1740552602695,0.168395,89076.0,89072.0,0.01154383]
[1740552603378,0.168393,89077.0,89072.0,0.01154383]
[1740552603525,0.04137152,89079.0,89072.0,0.01154383]
[1740552603736,0.168395,89076.0,89072.0,0.01154383]
[1740552603935,0.168395,89076.0,89074.0,0.003]
[1740552604258,0.04208039,89079.0,89067.0,0.224549]
[1740552604489,0.168396,89076.0,89069.0,0.168408]
[1740552604605,0.168394,89077.0,89072.0,0.002]
[1740552604805,0.168395,89076.0,89073.0,0.0115423]
[1740552605053,0.04209706,89079.0,89073.0,0.0115423]
[1740552605250,0.04125512,89084.0,89074.0,0.003]
[1740552605464,0.224509,89083.0,89065.0,0.224554]
[1740552605680,0.168401,89073.0,89066.0,0.011553]
[1740552606342,0.168401,89073.0,89067.0,0.01942537]
[1740552606874,0.168401,89073.0,89068.0,0.01154994]
[1740552607210,0.168401,89073.0,89072.0,0.002]
[1740552607406,0.168401,89073.0,89068.0,0.01154994]
[1740552607611,0.168401,89073.0,89072.0,0.01154383]
[1740552608008,0.168401,89073.0,89066.0,0.168413]
[1740552608203,0.168401,89073.0,89072.0,0.004]
[1740552608405,0.168401,89073.0,89072.0,0.005]
[1740552608902,0.168401,89073.0,89072.0,0.004]
[1740552609084,0.16940104,89073.0,89072.0,0.004]
[1740552609488,0.168401,89073.0,89072.0,0.004]
[1740552610239,0.168401,89073.0,89072.0,0.0048482]
[1740552610483,0.168401,89073.0,89072.0,0.0008482]
[1740552610869,0.168401,89073.0,89072.0,0.0038482]
[1740552611474,0.168401,89073.0,89072.0,0.0068482]
[1740552612076,0.168401,89073.0,89072.0,0.0008482]
[1740552613087,0.0420137,89084.0,89072.0,0.0018482]
[1740552613296,0.168401,89073.0,89072.0,0.0018482]
[1740552613845,0.1684,89074.0,89072.0,0.0038482]
[1740552614054,0.168401,89073.0,89072.0,0.0038482]
[1740552614488,0.168401,89073.0,89072.0,0.0008482]
[1740552615724,0.224525,89077.0,89072.0,0.0018482]
[1740552615924,0.224522,89079.0,89072.0,0.01339203]
[1740552616309,0.168401,89073.0,89072.0,0.01239203]
[1740552616946,0.168401,89073.0,89072.0,0.0008482]
[1740552617346,0.168401,89073.0,89072.0,0.0048482]
[1740552617546,0.168401,89073.0,89072.0,0.0008482]
[1740552618277,0.16661391,89074.0,89072.0,0.01239203]
[1740552618486,0.04148787,89084.0,89072.0,0.0038482]
[1740552618682,0.224456,89105.0,89072.0,0.0018482]
[1740552618683,0.00100004,89087.0,89072.0,0.0018482]
[1740552618885,0.224502,89086.0,89072.0,0.0018482]
[1740552619117,0.224502,89086.0,89072.0,0.0008482]
[1740552619118,0.168401,89073.0,89072.0,0.0008482]
[1740552619354,0.168401,89073.0,89072.0,0.0018482]
[1740552620183,0.168401,89073.0,89072.0,0.0048482]
[1740552620466,0.168401,89073.0,89072.0,0.0018482]
[1740552620658,0.168401,89073.0,89072.0,0.0048482]
[1740552621847,0.168401,89073.0,89072.0,0.0058482]
[1740552625888,0.168401,89073.0,89072.0,0.0048482]
[1740552626624,0.168401,89073.0,89072.0,0.0008482]
[1740552626995,0.168401,89073.0,89072.0,0.0028482]
[1740552627201,0.168401,89073.0,89072.0,0.0008482]
[1740552627581,0.168401,89073.0,89072.0,0.0038482]
[1740552628321,0.168401,89073.0,89072.0,0.0008482]
[1740552628665,0.168401,89073.0,89072.0,0.0018482]
[1740552630531,0.168401,89073.0,89072.0,0.0038482]
[1740552630895,0.168401,89073.0,89072.0,0.0008482]
[1740552631102,0.168401,89073.0,89072.0,0.01239203]
[1740552631303,0.168401,89073.0,89072.0,0.0028482]
[1740552631617,0.168401,89073.0,89072.0,0.01239203]
[1740552631882,0.168401,89073.0,89072.0,0.0038482]
[1740552632099,0.168401,89073.0,89072.0,0.0008482]
[1740552632300,0.168401,89073.0,89072.0,0.0018482]
[1740552632475,0.168401,89073.0,89072.0,0.0048482]
[1740552633724,0.168397,89075.0,89072.0,0.0038482]
[1740552633929,0.168399,89074.0,89072.0,0.0048482]
[1740552634137,0.168401,89073.0,89072.0,0.0048482]
[1740552634313,0.168401,89073.0,89072.0,0.0008482]
[1740552634471,0.168401,89073.0,89072.0,0.0048482]
[1740552634674,0.168401,89073.0,89072.0,0.0018482]
[1740552635074,0.168401,89073.0,89072.0,0.0038482]
[1740552635277,0.168401,89073.0,89072.0,0.0018482]
[1740552635822,0.168401,89073.0,89072.0,0.0048482]
[1740552636970,0.16940104,89073.0,89072.0,0.0048482]
[1740552637372,0.16940104,89073.0,89072.0,0.0018482]
[1740552637617,0.16940104,89073.0,89072.0,0.0008482]
[1740552637821,0.16940104,89073.0,89072.0,0.0028482]
[1740552637977,0.16940104,89073.0,89072.0,0.0008482]
[1740552638191,0.46940104,89073.0,89072.0,0.0008482]
[1740552638389,0.548701,89073.0,89072.0,0.0018482]
[1740552638595,0.548701,89073.0,89072.0,0.0008482]
[1740552640058,0.16842,89063.0,89062.0,0.0008482]
[1740552642507,0.17142,89063.0,89062.0,0.0008482]
[1740552650017,0.3,89069.0,89062.0,0.0008482]
[1740552650373,0.16842,89063.0,89062.0,0.0008482]
[1740552651907,0.16942,89063.0,89062.0,0.0008482]
[1740552652665,0.17142,89063.0,89062.0,0.0008482]
[1740552664692,0.17142,89063.0,89062.0,0.00850302]
[1740552665167,0.17142,89063.0,89062.0,0.0008482]
[1740552670036,0.003,89063.0,89062.0,0.0008482]
[1740552670263,0.003,89063.0,89062.0,0.0483482]
[1740552670463,0.003,89063.0,89062.0,0.1273482]
[1740552672207,0.0004241,89065.0,89062.0,0.1273482]
[1740552673107,0.0004241,89065.0,89062.0,0.1293482]
[1740552673530,0.16842,89063.0,89062.0,0.1293482]
[1740552674137,0.16842,89063.0,89062.0,0.1303482]
[1740552674596,0.16842,89063.0,89062.0,0.1283482]
[1740552674823,0.1688411,89065.0,89062.0,0.1303482]
[1740552675230,0.0004241,89065.0,89062.0,0.1303482]
[1740552675388,0.16842,89063.0,89062.0,0.1303482]
[1740552675776,0.0004241,89065.0,89064.0,0.250918]
[1740552676173,0.224516,89081.0,89066.0,0.0786]
[1740552676382,0.168397,89075.0,89066.0,0.0786]
[1740552676572,0.168397,89075.0,89066.0,0.247014]
[1740552676914,0.168397,89075.0,89066.0,0.0786]
[1740552677074,0.168823,89074.0,89066.0,0.0786]
[1740552677335,0.168401,89073.0,89066.0,0.0786]
[1740552677540,0.000424,89074.0,89066.0,0.0786]
[1740552678066,0.168825,89074.0,89066.0,0.0786]
[1740552678529,0.0014241,89072.0,89066.0,0.0786]
[1740552678972,0.168412,89067.0,89066.0,0.0786]
[1740552679218,0.0014241,89072.0,89066.0,0.0786]
[1740552679450,0.168405,89071.0,89066.0,0.0786]
[1740552680093,0.168412,89067.0,89066.0,0.0786]
[1740552680368,0.168412,89067.0,89066.0,0.28006026]
[1740552681757,0.168407,89070.0,89066.0,0.28006026]
[1740552682005,0.168407,89070.0,89066.0,0.28106026]
[1740552682261,0.0004241,89072.0,89066.0,0.28306026]
[1740552682525,0.16841,89068.0,89066.0,0.28306026]
[1740552682768,0.168412,89067.0,89066.0,0.28206026]
[1740552683000,0.168412,89067.0,89066.0,0.28006026]
[1740552684887,0.168412,89067.0,89066.0,0.28106026]
[1740552685103,0.168412,89067.0,89066.0,0.28006026]
[1740552685300,0.168412,89067.0,89066.0,0.28306026]
[1740552685608,0.168412,89067.0,89066.0,0.28106026]
[1740552685806,0.168412,89067.0,89066.0,0.28006026]
[1740552686068,0.168412,89067.0,89066.0,0.28106026]
[1740552687248,0.224547,89069.0,89066.0,0.28106026]
[1740552687467,0.168409,89069.0,89066.0,0.28106026]
[1740552687871,0.2249631,89072.0,89066.0,0.28106026]
[1740552688032,0.2249631,89072.0,89066.0,0.28006026]
[1740552688510,0.001,89069.0,89066.0,0.28006026]
[1740552688735,0.001,89069.0,89066.0,0.27977927]
[1740552688942,0.168412,89067.0,89066.0,0.27977927]
[1740552689260,0.16841,89068.0,89066.0,0.27977927]
[1740552691429,0.168412,89067.0,89066.0,0.28077927]
[1740552691639,0.168412,89067.0,89066.0,0.27977927]
[1740552691957,0.168412,89067.0,89066.0,0.28077927]
[1740552692412,0.2249621,89072.0,89066.0,0.27977927]
[1740552692626,0.0004241,89072.0,89066.0,0.28077927]
[1740552692788,0.168412,89067.0,89066.0,0.28077927]
[1740552693006,0.16841,89068.0,89066.0,0.28077927]
[1740552693492,0.224547,89069.0,89066.0,0.28077927]
[1740552693714,0.392957,89069.0,89066.0,0.28077927]
[1740552694042,0.168411,89068.0,89066.0,0.28077927]
[1740552694457,0.168411,89068.0,89067.0,0.0113904]
[1740552694647,0.168411,89068.0,89066.0,0.27977927]
[1740552694849,0.168411,89068.0,89067.0,0.0113904]
[1740552695048,0.168411,89068.0,89066.0,0.28077927]
[1740552695250,0.168411,89068.0,89067.0,0.0113904]
[1740552695450,0.168412,89067.0,89066.0,0.27977927]
[1740552695706,0.168412,89067.0,89066.0,0.29117096]
[1740552696472,0.224541,89071.0,89066.0,0.29117096]
[1740552697022,0.168412,89067.0,89066.0,0.29117096]
[1740552698844,0.168412,89067.0,89066.0,0.29317096]
[1740552699050,0.168412,89067.0,89066.0,0.21485195]
[1740552700001,0.168412,89067.0,89066.0,0.20346026]
[1740552700203,0.168412,89067.0,89066.0,0.21485195]
[1740552700406,0.168412,89067.0,89066.0,0.21585195]
[1740552700931,0.168412,89067.0,89066.0,0.21385195]
[1740552701135,0.168412,89067.0,89066.0,0.21285195]
[1740552701722,0.168412,89067.0,89066.0,0.01139169]
[1740552701859,0.469412,89067.0,89066.0,0.01139169]
[1740552702039,0.301,89067.0,89065.0,0.45701235]
[1740552702242,0.168414,89066.0,89065.0,0.45701235]
[1740552704517,0.174414,89066.0,89065.0,0.45701235]
[1740552709547,0.174414,89066.0,89065.0,0.46840533]
[1740552710708,0.168414,89066.0,89065.0,0.46840533]
[1740552717554,0.171414,89066.0,89065.0,0.46840533]
[1740552717915,0.168414,89066.0,89065.0,0.46840533]
[1740552718336,0.169414,89066.0,89065.0,0.46840533]
[1740552719424,0.0004241,89069.0,89065.0,0.46840533]
[1740552719755,0.168414,89066.0,89065.0,0.46840533]
[1740552719988,0.171414,89066.0,89065.0,0.46840533]
[1740552720382,0.0004241,89069.0,89065.0,0.46840533]
[1740552720588,0.0004241,89069.0,89068.0,0.16841]
[1740552720786,0.0034241,89069.0,89068.0,0.16841]
[1740552721020,0.0034241,89069.0,89068.0,0.2255991]
[1740552721170,0.0004241,89069.0,89068.0,0.3015991]
[1740552721380,0.0004241,89069.0,89068.0,0.3005991]
[1740552721588,0.0004241,89069.0,89068.0,0.1331891]
[1740552721822,0.0004241,89069.0,89068.0,0.3015991]
[1740552721975,0.0004241,89069.0,89068.0,0.1331891]
[1740552722615,0.1688321,89069.0,89068.0,0.1331891]
[1740552723138,0.224537,89073.0,89068.0,0.0113891]
[1740552723344,0.168408,89069.0,89068.0,0.0113891]
[1740552723540,0.168414,89066.0,89065.0,0.45701235]
[1740552724122,0.2249611,89072.0,89068.0,0.003]
[1740552724123,0.168408,89069.0,89068.0,0.003]
[1740552724310,0.0004241,89072.0,89065.0,0.45701235]
[1740552724509,0.0004241,89072.0,89068.0,0.0113891]
[1740552724745,0.0004241,89072.0,89065.0,0.45901235]
[1740552725058,0.0004241,89072.0,89065.0,0.45701235]
[1740552725279,0.0004241,89072.0,89068.0,0.001]
[1740552725562,0.2249611,89072.0,89065.0,0.45701235]
[1740552725713,0.168414,89066.0,89065.0,0.45701235]
[1740552725900,0.168414,89066.0,89065.0,0.45801235]
[1740552726101,0.224545,89069.0,89065.0,0.45801235]
[1740552726310,0.168414,89066.0,89065.0,0.45801235]
[1740552727194,0.168414,89066.0,89065.0,0.45701235]
[1740552727683,0.168414,89066.0,89065.0,0.45901235]
[1740552727898,0.168414,89066.0,89065.0,0.46101235]
[1740552729038,0.0004241,89071.0,89065.0,0.46101235]
[1740552729340,0.0004241,89071.0,89066.0,0.168413]
[1740552729540,0.0004241,89071.0,89067.0,0.081]
[1740552729780,0.0004241,89071.0,89069.0,0.168408]
[1740552730031,0.01108419,89110.0,89070.0,0.168405]
[1740552730191,0.168389,89080.0,89069.0,0.224545]
[1740552730410,0.168386,89082.0,89073.0,0.1684]
[1740552730567,0.224505,89085.0,89070.0,0.247505]
[1740552730772,0.168392,89078.0,89070.0,0.0791]
[1740552730973,0.224513,89082.0,89070.0,0.0791]
[1740552731211,0.224933,89084.0,89070.0,0.247506]
[1740552731426,0.168393,89078.0,89070.0,0.247506]
[1740552731968,0.224509,89083.0,89070.0,0.0791]
[1740552732174,0.168394,89077.0,89070.0,0.0791]
[1740552732552,0.168395,89076.0,89070.0,0.0791]
[1740552733870,0.168395,89076.0,89070.0,0.0801]
[1740552734275,0.168395,89076.0,89070.0,0.0791]
[1740552734707,0.168399,89074.0,89070.0,0.0821]
[1740552735096,0.168401,89073.0,89070.0,0.0821]
[1740552735986,0.168401,89073.0,89070.0,0.0791]
[1740552736195,0.224527,89076.0,89070.0,0.0811]
[1740552736395,0.168399,89074.0,89070.0,0.0811]
[1740552736607,0.224514,89082.0,89070.0,0.0811]
[1740552736806,0.168404,89072.0,89070.0,0.0791]
[1740552736985,0.224514,89082.0,89070.0,0.0811]
[1740552737302,0.224514,89082.0,89070.0,0.0841]
[1740552737303,0.168404,89071.0,89070.0,0.0841]
[1740552737467,0.168404,89071.0,89070.0,0.0821]
[1740552737667,0.168403,89072.0,89070.0,0.0791]
[1740552738083,0.225514,89082.0,89070.0,0.0791]
[1740552738293,0.1684,89074.0,89070.0,0.0791]
[1740552738626,0.168401,89073.0,89070.0,0.0831]
[1740552738833,0.224523,89078.0,89070.0,0.0791]
[1740552739035,0.168389,89080.0,89073.0,0.168401]
[1740552739818,0.168389,89080.0,89070.0,0.0851]
[1740552740022,0.000424,89084.0,89070.0,0.0821]
[1740552740221,0.168383,89083.0,89071.0,0.224539]
[1740552740423,0.168804,89084.0,89071.0,0.224539]
[1740552740583,0.000424,89084.0,89074.0,0.168398]
[1740552740791,0.168804,89084.0,89075.0,0.081]
[1740552740986,0.000424,89084.0,89075.0,0.081]
[1740552741191,0.000424,89084.0,89075.0,0.249397]
[1740552741971,0.001,89083.0,89075.0,0.081]
[1740552742158,0.000424,89084.0,89075.0,0.081]
[1740552742451,0.002424,89084.0,89075.0,0.081]
[1740552742964,0.000424,89084.0,89075.0,0.081]
[1740552743287,0.0785,89103.0,89075.0,0.081]
[1740552743567,0.168376,89087.0,89076.0,0.168395]
[1740552743773,0.001,89084.0,89075.0,0.081]
[1740552744073,0.003,89084.0,89075.0,0.081]
[1740552744583,0.002,89084.0,89075.0,0.081]
[1740552744749,0.168382,89083.0,89075.0,0.081]
[1740552745759,0.16838,89084.0,89075.0,0.081]
[1740552746394,0.001,89083.0,89075.0,0.081]
[1740552747569,0.001,89083.0,89075.0,0.249397]
[1740552748323,0.001,89083.0,89075.0,0.081]
[1740552749332,0.001,89083.0,89075.0,0.305529]
[1740552749554,0.002,89083.0,89076.0,0.168393]
[1740552750075,0.002,89083.0,89076.0,0.168394]
[1740552750581,0.168376,89086.0,89076.0,0.168394]
[1740552750742,0.002,89083.0,89076.0,0.168395]
[1740552751090,0.002,89083.0,89076.0,0.272627]
[1740552751245,0.002,89083.0,89076.0,0.0481]
[1740552751441,0.001,89083.0,89076.0,0.0481]
[1740552751653,0.001,89083.0,89078.0,0.168391]
[1740552752047,0.001424,89083.0,89078.0,0.168391]
[1740552752250,0.000424,89083.0,89078.0,0.168391]
[1740552752674,0.000424,89083.0,89077.0,0.224524]
[1740552753344,0.000424,89083.0,89077.0,0.168393]
[1740552753501,0.002424,89083.0,89077.0,0.168393]
[1740552753866,0.000424,89083.0,89077.0,0.168393]
[1740552754069,0.001424,89083.0,89076.0,0.216495]
[1740552754271,0.002424,89083.0,89076.0,0.0481]
[1740552754697,0.002424,89083.0,89077.0,0.168391]
[1740552755031,0.001424,89083.0,89077.0,0.168391]